[Event "Chess Festival Groningen 2023 | A"]
[Site "Groningen, Netherlands"]
[Date "2023.12.26"]
[Round "5.28"]
[White "Bakija, Alan"]
[Black "Grooten, Herman"]
[Result "0-1"]
[TimeControl "90min/40moves + 30min + 30sec/move"]
[WhiteElo "2010"]
[BlackElo "2243"]

1. c4 {[%clk 01:30:57]} {[%emt 00:00:05]} b6 {[%clk 01:30:44]} {[%emt
00:00:17]} 2. d4 {[%clk 01:31:22]} {[%emt 00:00:13]} Bb7 {[%clk 01:31:07]} 3.
Nc3 {[%clk 01:31:44]} {[%emt 00:00:14]} e6 {[%clk 01:31:16]} {[%emt 00:00:25]}
4. a3 {[%clk 01:32:05]} f5 {[%clk 01:30:51]} {[%emt 00:00:49]} 5. d5 {[%clk
01:32:25]} {[%emt 00:00:12]} Nf6 {[%clk 01:30:12]} {[%emt 00:01:07]} 6. Nf3
{[%clk 01:32:36]} {[%emt 00:00:20]} Na6 {[%clk 01:30:07]} {[%emt 00:00:36]} 7.
b4 {[%clk 01:32:52]} {[%emt 00:00:16]} g6 {[%clk 01:28:18]} {[%emt 00:02:18]} 8.
Bf4 {[%clk 01:18:05]} {[%emt 00:15:16]} Bg7 {[%clk 01:24:04]} {[%emt 00:05:00]}
9. Rc1 {[%clk 01:18:22]} {[%emt 00:00:04]} O-O {[%clk 01:21:23]} {[%emt
00:03:02]} 10. g3 {[%clk 01:07:56]} {[%emt 00:10:57]} Ne4 {[%clk 01:14:04]}
{[%emt 00:07:49]} 11. Be5 {[%clk 00:59:54]} {[%emt 00:08:35]} Bxe5 {[%clk
01:09:26]} {[%emt 00:05:04]} 12. Nxe5 {[%clk 01:00:02]} {[%emt 00:00:34]} Nxc3
{[%clk 01:09:09]} {[%emt 00:00:36]} 13. Rxc3 {[%clk 01:00:19]} {[%emt
00:00:31]} exd5 {[%clk 01:07:11]} {[%emt 00:02:12]} 14. Bg2 {[%clk 00:42:41]}
{[%emt 00:18:04]} c6 {[%clk 01:02:06]} {[%emt 00:06:01]} 15. cxd5 {[%clk
00:38:44]} {[%emt 00:04:04]} c5 {[%clk 00:54:15]} {[%emt 00:08:20]} 16. O-O
{[%clk 00:19:36]} {[%emt 00:19:36]} Qf6 {[%clk 00:33:38]} {[%emt 00:21:08]} 17.
Re3 {[%clk 00:19:52]} {[%emt 00:00:14]} Rfe8 {[%clk 00:32:17]} {[%emt
00:01:51]} 18. Qb3 {[%clk 00:11:30]} {[%emt 00:08:52]} d6 {[%clk 00:29:32]}
{[%emt 00:03:20]} 19. Nc6 {[%clk 00:10:50]} {[%emt 00:01:03]} Rxe3 {[%clk
00:28:23]} {[%emt 00:01:39]} 20. Qxe3 {[%clk 00:11:14]} {[%emt 00:00:10]} Nc7
{[%clk 00:28:39]} {[%emt 00:00:10]} 21. bxc5 {[%clk 00:10:20]} {[%emt
00:01:26]} bxc5 {[%clk 00:22:54]} {[%emt 00:06:21]} 22. Rb1 {[%clk 00:10:14]}
{[%emt 00:00:29]} Ba6 {[%clk 00:22:40]} {[%emt 00:00:44]} 23. Qd2 {[%clk
00:09:30]} {[%emt 00:01:23]} Qf7 {[%clk 00:15:15]} {[%emt 00:07:55]} 24. h4
{[%clk 00:08:43]} {[%emt 00:01:10]} Ne8 {[%clk 00:12:47]} {[%emt 00:02:58]} 25.
e3 {[%clk 00:06:24]} {[%emt 00:02:46]} Nf6 {[%clk 00:13:04]} {[%emt 00:00:13]}
26. Qc3 {[%clk 00:05:05]} {[%emt 00:01:49]} Re8 {[%clk 00:12:42]} {[%emt
00:00:53]} 27. Qa5 {[%clk 00:04:03]} {[%emt 00:01:33]} Bd3 {[%clk 00:11:39]}
{[%emt 00:01:33]} 28. Rd1 {[%clk 00:04:00]} {[%emt 00:00:34]} Bc4 {[%clk
00:09:29]} {[%emt 00:02:38]} 29. Nd8 {[%clk 00:02:00]} {[%emt 00:02:30]} Qd7
{[%clk 00:07:07]} {[%emt 00:03:03]} 30. Ne6 {[%clk 00:02:14]} {[%emt 00:00:10]}
Bb3 {[%clk 00:04:29]} {[%emt 00:03:04]} 31. Rb1 {[%clk 00:00:51]} {[%emt
00:01:51]} c4 {[%clk 00:04:28]} {[%emt 00:00:32]} 32. Nd4 {[%clk 00:01:15]}
{[%emt 00:00:15]} Rb8 {[%clk 00:04:42]} {[%emt 00:00:09]} 33. Nxb3 {[%clk
00:00:46]} {[%emt 00:00:55]} cxb3 {[%clk 00:02:16]} {[%emt 00:02:56]} 34. Qc3
{[%clk 00:01:11]} {[%emt 00:00:10]} Ng4 {[%clk 00:01:28]} {[%emt 00:01:14]} 35.
Rxb3 {[%clk 00:01:29]} {[%emt 00:00:12]} Rxb3 {[%clk 00:01:28]} {[%emt
00:00:30]} 36. Qxb3 {[%clk 00:01:55]} {[%emt 00:00:07]} Qc7 {[%clk 00:01:53]}
{[%emt 00:00:08]} 37. Qb2 {[%clk 00:01:45]} {[%emt 00:00:34]} Qa5 {[%clk
00:01:43]} {[%emt 00:00:54]} 38. Qb4 {[%clk 00:01:46]} {[%emt 00:00:16]} Qc7
{[%clk 00:02:02]} {[%emt 00:00:10]} 39. Qb2 {[%clk 00:02:12]} {[%emt 00:00:35]}
Qa5 {[%clk 00:02:02]} {[%emt 00:00:06]} 40. Qc1 {[%clk 00:00:49]} {[%emt
00:01:46]} Ne5 {[%clk 00:01:25]} {[%emt 00:01:07]} 41. Qc8+ {[%clk 00:17:30]}
{[%emt 00:13:49]} Kg7 {[%clk 00:31:35]} {[%emt 00:00:20]} 42. Qb7+ {[%clk
00:17:28]} {[%emt 00:00:34]} Kf6 {[%clk 00:25:58]} {[%emt 00:06:13]} 43. Qb4
{[%clk 00:14:34]} {[%emt 00:03:15]} Qxb4 {[%clk 00:24:56]} {[%emt 00:02:07]} 44.
axb4 {[%clk 00:14:59]} Nd3 {[%clk 00:25:21]} 45. b5 {[%clk 00:15:19]} {[%emt
00:00:04]} Nb4 {[%clk 00:24:31]} {[%emt 00:01:04]} 46. f4 {[%clk 00:12:53]}
{[%emt 00:02:55]} Na2 {[%clk 00:22:33]} {[%emt 00:02:27]} 47. Bf1 {[%clk
00:12:10]} {[%emt 00:01:15]} Nc3 {[%clk 00:22:33]} {[%emt 00:00:27]} 48. Kf2
{[%clk 00:08:51]} {[%emt 00:03:49]} Nxd5 {[%clk 00:22:37]} {[%emt 00:00:29]} 49.
Kf3 {[%clk 00:08:56]} {[%emt 00:00:23]} Nc3 {[%clk 00:20:23]} {[%emt 00:03:07]}
50. g4 {[%clk 00:08:57]} {[%emt 00:00:07]} d5 {[%clk 00:19:16]} {[%emt
00:01:35]} 51. Bd3 {[%clk 00:07:04]} {[%emt 00:02:24]} Ne4 {[%clk 00:15:20]}
{[%emt 00:04:26]} 52. gxf5 {[%clk 00:04:28]} {[%emt 00:03:05]} gxf5 {[%clk
00:15:43]} {[%emt 00:00:22]} 53. Kg2 {[%clk 00:02:27]} {[%emt 00:02:15]} Ke6
{[%clk 00:14:57]} {[%emt 00:01:20]} 54. Kf1 {[%clk 00:02:24]} {[%emt 00:00:29]}
Kd6 {[%clk 00:14:53]} {[%emt 00:00:58]} 55. Ke1 {[%clk 00:02:50]} {[%emt
00:00:04]} Kc5 {[%clk 00:14:53]} {[%emt 00:00:07]} 56. Bf1 {[%clk 00:00:43]}
{[%emt 00:02:45]} h6 {[%clk 00:14:22]} {[%emt 00:00:52]} 57. Bd3 {[%clk
00:00:32]} {[%emt 00:00:57]} Kb4 {[%clk 00:12:45]} {[%emt 00:01:51]} 58. Bf1
{[%clk 00:00:32]} {[%emt 00:00:30]} Kc3 {[%clk 00:11:51]} {[%emt 00:01:24]} 59.
Bh3 {[%clk 00:00:39]} {[%emt 00:00:26]} Kd3 {[%clk 00:09:41]} {[%emt 00:03:00]}
60. Bxf5 {[%clk 00:01:08]} Kxe3 {[%clk 00:10:01]} {[%emt 00:00:03]} 61. Be6
{[%clk 00:01:28]} d4 {[%clk 00:10:15]} {[%emt 00:00:09]} 62. f5 {[%clk
00:01:46]} {[%emt 00:00:16]} d3 {[%clk 00:10:14]} {[%emt 00:00:28]} 63. Bb3
{[%clk 00:01:38]} {[%emt 00:00:40]} d2+ {[%clk 00:10:28]} {[%emt 00:00:14]} 64.
Kf1 {[%clk 00:01:42]} {[%emt 00:00:26]} Ng3+ {[%clk 00:10:52]} {[%emt
00:00:13]} 65. Kg2 {[%clk 00:01:58]} {[%emt 00:00:06]} Nxf5 {[%clk 00:11:15]}
{[%emt 00:00:24]} 66. Kh3 {[%clk 00:02:09]} {[%emt 00:00:07]} Kf4 {[%clk
00:11:28]} {[%emt 00:00:12]} 0-1

[Event "Chess Festival Groningen 2023 | A"]
[Site "Groningen, Netherlands"]
[Date "2023.12.26"]
[Round "5.29"]
[White "Van Der Leest, Bert"]
[Black "Francs, Marats"]
[Result "0-1"]
[TimeControl "90min/40moves + 30min + 30sec/move"]
[WhiteFideId "1009460"]
[WhiteElo "2142"]
[BlackElo "1990"]

1. e4 {[%clk 01:30:58]} {[%emt 00:00:13]} e5 {[%clk 01:30:18]} {[%emt
00:00:38]} 2. Bc4 {[%clk 01:31:14]} {[%emt 00:00:13]} Nc6 {[%clk 01:30:27]}
{[%emt 00:00:23]} 3. Nf3 {[%clk 01:31:29]} {[%emt 00:00:36]} Bc5 {[%clk
01:30:39]} 4. O-O {[%clk 01:30:37]} {[%emt 00:01:13]} d6 {[%clk 01:29:55]}
{[%emt 00:01:12]} 5. c3 {[%clk 01:29:50]} {[%emt 00:01:21]} Nf6 {[%clk
01:29:13]} {[%emt 00:01:09]} 6. d4 {[%clk 01:29:19]} {[%emt 00:01:04]} Bb6
{[%clk 01:28:20]} {[%emt 00:01:19]} 7. dxe5 {[%clk 01:28:22]} {[%emt 00:01:29]}
Nxe5 {[%clk 01:22:04]} {[%emt 00:06:53]} 8. Nxe5 {[%clk 01:28:01]} {[%emt
00:00:39]} dxe5 {[%clk 01:22:26]} {[%emt 00:00:13]} 9. Qxd8+ {[%clk 01:27:30]}
{[%emt 00:01:01]} Kxd8 {[%clk 01:22:47]} {[%emt 00:00:11]} 10. Bg5 {[%clk
01:19:33]} {[%emt 00:08:29]} Ke8 {[%clk 01:16:33]} {[%emt 00:06:55]} 11. Nd2
{[%clk 01:19:00]} {[%emt 00:00:46]} Nd7 {[%clk 01:14:36]} {[%emt 00:02:24]} 12.
Rfe1 {[%clk 01:16:09]} {[%emt 00:03:24]} Nf8 {[%clk 01:14:03]} {[%emt
00:01:00]} 13. Nf1 {[%clk 01:10:41]} {[%emt 00:06:13]} f6 {[%clk 01:13:53]}
{[%emt 00:00:30]} 14. Be3 {[%clk 01:10:59]} {[%emt 00:00:07]} Be6 {[%clk
01:13:34]} {[%emt 00:01:19]} 15. Bb3 {[%clk 01:06:22]} {[%emt 00:04:38]} Ke7
{[%clk 01:12:54]} {[%emt 00:01:09]} 16. Bxb6 {[%clk 01:06:11]} {[%emt
00:00:43]} axb6 {[%clk 01:12:52]} {[%emt 00:00:33]} 17. Ne3 {[%clk 01:06:34]}
{[%emt 00:00:36]} g6 {[%clk 01:12:26]} {[%emt 00:00:24]} 18. Nd5+ {[%clk
01:05:07]} {[%emt 00:01:57]} Bxd5 {[%clk 01:12:43]} {[%emt 00:00:13]} 19. Bxd5
{[%clk 01:04:00]} {[%emt 00:01:38]} c6 {[%clk 01:10:31]} {[%emt 00:02:44]} 20.
Bc4 {[%clk 01:04:20]} {[%emt 00:00:24]} Nd7 {[%clk 01:10:21]} {[%emt 00:00:53]}
21. f3 {[%clk 00:56:34]} {[%emt 00:07:47]} Nc5 {[%clk 01:09:56]} {[%emt
00:00:55]} 22. a3 {[%clk 00:50:15]} {[%emt 00:06:51]} Rhd8 {[%clk 01:10:00]}
{[%emt 00:00:26]} 23. Kf2 {[%clk 00:43:24]} {[%emt 00:07:18]} b5 {[%clk
01:06:34]} {[%emt 00:03:59]} 24. Be2 {[%clk 00:35:09]} {[%emt 00:08:42]} Rd2
{[%clk 01:06:40]} {[%emt 00:00:24]} 25. Reb1 {[%clk 00:14:42]} {[%emt
00:20:57]} Rad8 {[%clk 01:04:50]} {[%emt 00:02:21]} 26. Ke1 {[%clk 00:07:48]}
{[%emt 00:07:22]} Rc2 {[%clk 01:01:33]} {[%emt 00:03:48]} 27. Rc1 {[%clk
00:03:55]} {[%emt 00:04:23]} Rxb2 {[%clk 01:00:04]} {[%emt 00:02:30]} 28. c4
{[%clk 00:03:44]} {[%emt 00:00:17]} Rdd2 {[%clk 00:59:22]} {[%emt 00:01:05]} 29.
Bf1 {[%clk 00:03:58]} {[%emt 00:00:38]} Nb3 {[%clk 00:58:30]} {[%emt 00:01:35]}
30. Rd1 {[%clk 00:04:05]} bxc4 {[%clk 00:57:58]} {[%emt 00:00:54]} 31. Bxc4
{[%clk 00:04:15]} {[%emt 00:00:31]} Rxg2 {[%clk 00:58:01]} {[%emt 00:00:16]} 32.
Rab1 {[%clk 00:03:50]} {[%emt 00:01:00]} Rg1+ {[%clk 00:58:06]} {[%emt
00:00:16]} 33. Bf1 {[%clk 00:04:14]} {[%emt 00:00:35]} Rxb1 {[%clk 00:58:25]}
{[%emt 00:00:04]} 34. Rxb1 {[%clk 00:04:36]} Rxf1+ {[%clk 00:58:51]} 0-1

[Event "Chess Festival Groningen 2023 | A"]
[Site "Groningen, Netherlands"]
[Date "2023.12.26"]
[Round "5.30"]
[White "Krasenkowa, Elena"]
[Black "Arnold, Rhys"]
[Result "0-1"]
[TimeControl "90min/40moves + 30min + 30sec/move"]
[WhiteElo "2109"]
[BlackElo "2053"]

1. d4 {[%clk 01:30:58]} {[%emt 00:00:09]} d5 {[%clk 01:30:56]} 2. Bf4 {[%clk
01:31:23]} {[%emt 00:00:15]} Nf6 {[%clk 01:30:55]} {[%emt 00:00:15]} 3. e3
{[%clk 01:31:34]} {[%emt 00:00:28]} e6 {[%clk 01:31:14]} {[%emt 00:00:08]} 4.
Nd2 {[%clk 01:31:35]} {[%emt 00:00:27]} c5 {[%clk 01:30:02]} {[%emt 00:01:39]}
5. c3 {[%clk 01:31:53]} {[%emt 00:00:20]} Bd6 {[%clk 01:30:00]} {[%emt
00:00:23]} 6. Ne2 {[%clk 01:30:37]} {[%emt 00:01:48]} O-O {[%clk 01:29:20]}
{[%emt 00:01:08]} 7. g3 {[%clk 01:26:54]} {[%emt 00:04:49]} Nc6 {[%clk
01:27:27]} {[%emt 00:01:49]} 8. Bxd6 {[%clk 01:25:51]} {[%emt 00:01:32]} Qxd6
{[%clk 01:27:51]} {[%emt 00:00:29]} 9. Bg2 {[%clk 01:26:17]} e5 {[%clk
01:22:29]} {[%emt 00:05:35]} 10. dxc5 {[%clk 01:26:35]} {[%emt 00:00:09]} Qxc5
{[%clk 01:22:32]} {[%emt 00:00:31]} 11. O-O {[%clk 01:26:45]} {[%emt 00:00:16]}
Be6 {[%clk 01:21:57]} {[%emt 00:01:06]} 12. b4 {[%clk 01:23:43]} {[%emt
00:03:32]} Qd6 {[%clk 01:16:46]} {[%emt 00:05:42]} 13. Nb3 {[%clk 01:21:32]}
{[%emt 00:02:39]} Rad8 {[%clk 01:13:15]} {[%emt 00:04:01]} 14. Qc1 {[%clk
01:14:19]} {[%emt 00:07:42]} b6 {[%clk 01:09:38]} {[%emt 00:04:09]} 15. Rd1
{[%clk 01:12:18]} {[%emt 00:02:28]} Qc7 {[%clk 01:06:36]} {[%emt 00:03:36]} 16.
Qb2 {[%clk 01:12:32]} {[%emt 00:00:13]} h5 {[%clk 01:05:43]} {[%emt 00:01:23]}
17. Rac1 {[%clk 01:11:43]} {[%emt 00:01:22]} Ne7 {[%clk 01:04:11]} {[%emt
00:01:59]} 18. Nd2 {[%clk 01:10:53]} {[%emt 00:01:20]} h4 {[%clk 00:59:15]}
{[%emt 00:05:26]} 19. Nf3 {[%clk 01:09:54]} {[%emt 00:01:28]} h3 {[%clk
00:55:42]} {[%emt 00:04:21]} 20. Bf1 {[%clk 01:09:49]} {[%emt 00:00:19]} Bg4
{[%clk 00:53:27]} {[%emt 00:02:42]} 21. Ng5 {[%clk 01:08:19]} {[%emt 00:01:59]}
Qc8 {[%clk 00:52:40]} {[%emt 00:01:20]} 22. Qc2 {[%clk 00:58:04]} {[%emt
00:10:46]} e4 {[%clk 00:49:08]} {[%emt 00:04:02]} 23. Re1 {[%clk 00:45:55]}
{[%emt 00:12:35]} Nc6 {[%clk 00:31:34]} {[%emt 00:18:04]} 24. b5 {[%clk
00:38:07]} {[%emt 00:08:18]} Ne5 {[%clk 00:30:58]} {[%emt 00:01:06]} 25. Nd4
{[%clk 00:38:31]} {[%emt 00:00:34]} Rde8 {[%clk 00:27:01]} {[%emt 00:04:01]} 26.
c4 {[%clk 00:33:25]} {[%emt 00:05:34]} dxc4 {[%clk 00:23:54]} {[%emt 00:03:37]}
27. Bxc4 {[%clk 00:33:40]} {[%emt 00:00:14]} Nxc4 {[%clk 00:24:02]} {[%emt
00:00:25]} 28. Qxc4 {[%clk 00:34:05]} {[%emt 00:00:07]} Qxc4 {[%clk 00:24:27]}
{[%emt 00:00:03]} 29. Rxc4 {[%clk 00:34:31]} {[%emt 00:00:05]} Re5 {[%clk
00:24:52]} {[%emt 00:00:12]} 30. f4 {[%clk 00:30:48]} {[%emt 00:04:04]} exf3
{[%clk 00:25:16]} {[%emt 00:00:16]} 31. Ngxf3 {[%clk 00:31:06]} {[%emt
00:00:04]} Bxf3 {[%clk 00:23:37]} {[%emt 00:02:29]} 32. Nxf3 {[%clk 00:31:30]}
Rxb5 {[%clk 00:24:02]} 33. a4 {[%clk 00:31:34]} {[%emt 00:00:14]} Rb2 {[%clk
00:23:46]} {[%emt 00:00:46]} 34. Ng5 {[%clk 00:31:50]} {[%emt 00:00:13]} Rd8
{[%clk 00:20:55]} {[%emt 00:03:30]} 35. Rf1 {[%clk 00:18:19]} {[%emt 00:13:52]}
Rg2+ {[%clk 00:13:19]} {[%emt 00:08:06]} 36. Kh1 {[%clk 00:18:45]} {[%emt
00:00:10]} g6 {[%clk 00:13:44]} {[%emt 00:00:10]} 37. Nxh3 {[%clk 00:06:54]}
{[%emt 00:12:11]} Rdd2 {[%clk 00:14:11]} {[%emt 00:00:33]} 38. Rxf6 {[%clk
00:06:14]} {[%emt 00:00:39]} Rxh2+ {[%clk 00:14:35]} {[%emt 00:00:12]} 39. Kg1
{[%clk 00:06:43]} Rxh3 {[%clk 00:14:33]} {[%emt 00:00:27]} 40. Rf3 {[%clk
00:06:58]} {[%emt 00:00:23]} Rd7 {[%clk 00:13:21]} {[%emt 00:01:35]} 41. Kg2
{[%clk 00:07:00]} {[%emt 00:00:32]} Rh5 {[%clk 00:13:39]} {[%emt 00:00:09]} 42.
g4 {[%clk 00:06:50]} {[%emt 00:00:43]} Rc5 {[%clk 00:12:57]} {[%emt 00:01:08]}
43. Re4 {[%clk 00:06:21]} {[%emt 00:01:28]} Kg7 {[%clk 00:11:21]} {[%emt
00:01:39]} 44. Kg3 {[%clk 00:06:32]} {[%emt 00:00:17]} Rdc7 {[%clk 00:09:27]}
{[%emt 00:02:24]} 45. Rd4 {[%clk 00:04:39]} {[%emt 00:02:25]} Rc4 {[%clk
00:08:22]} {[%emt 00:01:38]} 46. Rff4 {[%clk 00:04:55]} {[%emt 00:00:31]} Rxd4
{[%clk 00:07:39]} {[%emt 00:00:49]} 47. Rxd4 {[%clk 00:05:20]} {[%emt
00:00:19]} Kf6 {[%clk 00:02:34]} {[%emt 00:05:22]} 48. Kf4 {[%clk 00:04:12]}
{[%emt 00:01:37]} g5+ {[%clk 00:27:20]} {[%emt 00:05:58]} 49. Ke4 {[%clk
00:33:36]} {[%emt 00:00:53]} Ke6 {[%clk 00:26:44]} {[%emt 00:01:09]} 50. Rb4
{[%clk 00:30:43]} {[%emt 00:03:27]} Rc5 {[%clk 00:23:07]} {[%emt 00:04:23]} 51.
Rd4 {[%clk 00:30:54]} {[%emt 00:01:03]} Re5+ {[%clk 00:22:55]} {[%emt
00:00:03]} 52. Kf3 {[%clk 00:31:17]} {[%emt 00:00:04]} Rd5 {[%clk 00:23:01]}
{[%emt 00:00:21]} 53. Rc4 {[%clk 00:31:19]} {[%emt 00:00:28]} Kd6 {[%clk
00:21:22]} {[%emt 00:02:25]} 54. Ke4 {[%clk 00:29:11]} {[%emt 00:02:43]} Re5+
{[%clk 00:21:46]} {[%emt 00:00:07]} 55. Kf3 {[%clk 00:26:55]} {[%emt 00:02:25]}
f6 {[%clk 00:19:27]} {[%emt 00:02:49]} 56. Rd4+ {[%clk 00:16:38]} {[%emt
00:10:46]} Rd5 {[%clk 00:16:08]} {[%emt 00:03:48]} 57. Rc4 {[%clk 00:16:09]}
{[%emt 00:01:06]} Rc5 {[%clk 00:14:12]} {[%emt 00:02:21]} 58. Rd4+ {[%clk
00:15:56]} {[%emt 00:00:44]} Kc6 {[%clk 00:13:35]} {[%emt 00:01:05]} 59. Ke4
{[%clk 00:12:33]} {[%emt 00:03:55]} Re5+ {[%clk 00:14:01]} {[%emt 00:00:23]} 60.
Kf3 {[%clk 00:13:00]} a5 {[%clk 00:12:30]} {[%emt 00:01:44]} 61. Rc4+ {[%clk
00:12:37]} {[%emt 00:00:51]} Rc5 {[%clk 00:12:55]} {[%emt 00:00:36]} 62. Re4
{[%clk 00:12:51]} {[%emt 00:00:07]} b5 {[%clk 00:10:37]} {[%emt 00:02:28]} 63.
Re6+ {[%clk 00:08:56]} {[%emt 00:04:22]} Kd5 {[%clk 00:10:51]} {[%emt
00:00:19]} 64. Rxf6 {[%clk 00:09:22]} {[%emt 00:00:03]} bxa4 {[%clk 00:11:17]}
{[%emt 00:00:05]} 65. Ke2 {[%clk 00:08:43]} {[%emt 00:01:06]} a3 {[%clk
00:10:53]} {[%emt 00:01:18]} 66. Kd3 {[%clk 00:08:57]} {[%emt 00:00:06]} a2
{[%clk 00:08:46]} {[%emt 00:02:29]} 67. Rf5+ {[%clk 00:07:57]} {[%emt
00:01:26]} Kc6 {[%clk 00:08:42]} {[%emt 00:00:31]} 68. Rf1 {[%clk 00:08:20]}
{[%emt 00:00:35]} Rb5 {[%clk 00:08:53]} {[%emt 00:00:04]} 69. Ra1 {[%clk
00:07:28]} {[%emt 00:01:10]} Rb2 {[%clk 00:09:19]} {[%emt 00:00:15]} 70. Kc4
{[%clk 00:07:16]} {[%emt 00:00:31]} Kd6 {[%clk 00:08:42]} {[%emt 00:01:06]} 71.
Kd4 {[%clk 00:07:29]} {[%emt 00:00:17]} Ke6 {[%clk 00:08:49]} {[%emt 00:00:23]}
72. Ke4 {[%clk 00:07:02]} {[%emt 00:00:57]} Rf2 {[%clk 00:07:24]} {[%emt
00:01:59]} 73. Rd1 {[%clk 00:05:39]} {[%emt 00:01:49]} Rg2 {[%clk 00:07:30]}
{[%emt 00:00:45]} 74. Ra1 {[%clk 00:05:38]} {[%emt 00:00:09]} Rxg4+ {[%clk
00:07:47]} {[%emt 00:00:16]} 75. Kf3 {[%clk 00:05:57]} {[%emt 00:00:10]} Ra4
{[%clk 00:08:13]} {[%emt 00:00:11]} 76. Kg3 {[%clk 00:06:10]} {[%emt 00:00:09]}
Ke5 {[%clk 00:08:35]} {[%emt 00:00:10]} 77. Kf3 {[%clk 00:06:36]} {[%emt
00:00:04]} Kf5 {[%clk 00:08:39]} {[%emt 00:00:24]} 78. Kf2 {[%clk 00:06:55]}
{[%emt 00:00:32]} Ke4 {[%clk 00:09:04]} 79. Ke2 {[%clk 00:07:20]} {[%emt
00:00:05]} Ra3 {[%clk 00:08:56]} {[%emt 00:00:22]} 80. Kf2 {[%clk 00:07:38]}
{[%emt 00:00:15]} Kd3 {[%clk 00:09:17]} {[%emt 00:00:05]} 81. Kf3 {[%clk
00:07:35]} {[%emt 00:00:36]} Kc2 {[%clk 00:09:41]} {[%emt 00:00:05]} 0-1

[Event "Chess Festival Groningen 2023 | A"]
[Site "Groningen, Netherlands"]
[Date "2023.12.26"]
[Round "5.31"]
[White "Van Rootselaar, Rik"]
[Black "Vijayakumar, Rishi"]
[Result "1/2-1/2"]
[TimeControl "90min/40moves + 30min + 30sec/move"]
[WhiteElo "2105"]
[BlackElo "2104"]

1. d4 {[%clk 00:55:18]} Nf6 {[%clk 00:55:14]} 2. c4 {[%clk 00:55:18]} e6 {[%clk
00:55:14]} 3. g3 {[%clk 00:55:18]} d5 {[%clk 00:55:14]} 4. Bg2 {[%clk
00:55:18]} Be7 {[%clk 00:55:14]} 5. Nf3 {[%clk 00:55:18]} O-O {[%clk 00:55:14]}
6. O-O {[%clk 00:55:18]} dxc4 {[%clk 00:55:14]} 7. Qc2 {[%clk 00:55:18]} a5
{[%clk 00:55:14]} 8. Nbd2 {[%clk 00:55:18]} b5 {[%clk 00:55:14]} 9. b3 {[%clk
00:55:18]} cxb3 {[%clk 00:55:14]} 10. Nxb3 {[%clk 00:55:18]} Bb7 {[%clk
00:55:14]} 11. Bg5 {[%clk 00:55:18]} Be4 {[%clk 00:55:14]} 12. Qb2 {[%clk
00:55:18]} h6 {[%clk 00:55:14]} 13. Bxf6 {[%clk 00:55:18]} Bxf6 {[%clk
00:55:14]} 14. Rfd1 {[%clk 00:55:18]} Nd7 {[%clk 00:55:14]} 15. Rac1 {[%clk
00:55:18]} Rb8 {[%clk 00:55:14]} 16. Ne5 {[%clk 00:55:18]} Bxg2 {[%clk
00:55:14]} 17. Kxg2 {[%clk 00:55:18]} Nb6 {[%clk 00:55:14]} 18. e4 {[%clk
00:55:18]} Qe8 {[%clk 00:55:14]} 19. Nxa5 {[%clk 00:55:18]} c5 {[%clk
00:55:14]} 20. dxc5 {[%clk 00:55:18]} Nc4 {[%clk 00:55:14]} 21. Naxc4 {[%clk
00:55:18]} bxc4 {[%clk 00:55:14]} 22. Qd4 {[%clk 00:55:18]} Rd8 {[%clk
00:55:14]} 23. Qc3 {[%clk 00:55:18]} Rxd1 {[%clk 00:55:14]} 24. Rxd1 {[%clk
00:55:18]} Qa8 {[%clk 00:55:14]} 25. Re1 {[%clk 00:55:18]} Rc8 {[%clk
00:55:14]} 26. Qd4 {[%clk 00:55:18]} Qb8 {[%clk 00:55:14]} 27. f4 {[%clk
00:55:18]} Bxe5 {[%clk 00:55:14]} 28. fxe5 {[%clk 00:55:18]} Qb4 {[%clk
00:55:14]} 29. Rf1 {[%clk 00:55:18]} Qxc5 {[%clk 00:55:14]} 30. Qxc5 {[%clk
00:55:18]} Rxc5 {[%clk 00:55:14]} 31. Rc1 {[%clk 00:55:18]} Ra5 {[%clk
00:55:14]} 32. Rc2 {[%clk 00:55:18]} Ra3 {[%clk 00:55:14]} 33. h4 {[%clk
00:55:18]} Re3 {[%clk 00:55:14]} 34. Rxc4 {[%clk 00:55:18]} Re2+ {[%clk
00:55:14]} 35. Kf3 {[%clk 00:55:18]} Rxa2 {[%clk 00:55:14]} 36. Rc8+ {[%clk
00:55:18]} Kh7 {[%clk 00:55:14]} 37. Rc7 {[%clk 00:55:18]} Ra3+ {[%clk
00:55:14]} 38. Kf2 {[%clk 00:55:18]} Ra4 {[%clk 00:55:14]} 39. Kf3 {[%clk
00:55:18]} Ra3+ {[%clk 00:55:14]} 40. Kf2 {[%clk 00:55:18]} Kg8 {[%clk
00:55:14]} 1/2-1/2

[Event "Chess Festival Groningen 2023 | A"]
[Site "Groningen, Netherlands"]
[Date "2023.12.26"]
[Round "5.32"]
[White "Mohtaat, Homayoun"]
[Black "Groenewoud, Joel"]
[Result "0-1"]
[TimeControl "90min/40moves + 30min + 30sec/move"]
[WhiteFideId "11701552"]
[WhiteElo "2013"]
[BlackElo "1997"]

1. d4 Nf6 {[%clk 00:00:00]} 2. Nc3 d5 {[%clk 00:00:00]} 3. Bf4 c5 {[%clk
00:00:00]} 4. e3 cxd4 {[%clk 00:00:00]} 5. exd4 Bg4 {[%clk 00:00:00]} 6. f3 Bd7
{[%clk 00:00:00]} 7. Bd3 Nc6 {[%clk 00:00:00]} 8. Nb5 Rc8 {[%clk 00:00:00]} 9.
c3 a6 {[%clk 00:00:00]} 10. Na3 e6 {[%clk 00:00:00]} 11. Nc2 Nh5 {[%clk
00:00:00]} 12. Be3 Bd6 {[%clk 00:00:00]} 13. Ne2 Qc7 {[%clk 00:00:00]} 14. Qd2
b5 {[%clk 00:00:00]} 15. g4 Nf6 {[%clk 00:00:00]} 16. h4 Na5 {[%clk 00:00:00]}
17. b3 Nc4 {[%clk 00:00:00]} 18. bxc4 bxc4 {[%clk 00:00:00]} 19. Bxh7 Rxh7
{[%clk 00:00:00]} 20. Bf4 Bxf4 {[%clk 00:00:00]} 21. Qxf4 Qxf4 {[%clk
00:00:00]} 22. Nxf4 g5 {[%clk 00:00:00]} 23. Ng2 gxh4 {[%clk 00:00:00]} 24.
Rxh4 Rxh4 {[%clk 00:00:00]} 25. Nxh4 Ke7 {[%clk 00:00:00]} 26. Rb1 Rh8 {[%clk
00:00:00]} 27. Rb6 Rxh4 {[%clk 00:00:00]} 28. Rxa6 Rh2 {[%clk 00:00:00]} 29.
Nb4 Ne8 {[%clk 00:00:00]} 30. Ra7 Kd8 {[%clk 00:00:00]} 31. a4 Nc7 {[%clk
00:00:00]} 32. a5 Kc8 {[%clk 00:00:00]} 33. a6 Bb5 {[%clk 00:00:00]} 34. Kf1
Rb2 {[%clk 00:00:00]} 35. Ke1 f6 {[%clk 00:00:00]} 36. f4 Rg2 {[%clk 00:00:00]}
37. g5 fxg5 {[%clk 00:00:00]} 38. fxg5 Rxg5 {[%clk 00:00:00]} 39. Kd2 Rg3
{[%clk 00:00:00]} 40. Kc2 Ba4+ {[%clk 00:00:00]} 41. Kd2 Rh3 {[%clk 00:00:00]}
42. Rb7 Nxa6 {[%clk 00:00:00]} 0-1